bitfinex-derivatives/quotes_ETHF0:USTF0_20250828
["timestamp","ask_amount","ask_price","bid_price","bid_amount"]
[1756354444340,2.48858801,4550.5,4550.4,0.2872]
[1756354445031,2.48858801,4550.5,4550.4,0.5831]
[1756354445231,2.30248801,4550.5,4550.4,1.6443]
[1756354446840,2.48858801,4550.5,4550.4,1.6443]
[1756354448243,0.9178,4550.5,4550.4,1.6443]
[1756354448746,16.421,4550.6,4550.5,1.6443]
[1756354449042,16.5227,4550.6,4550.5,1.6443]
[1756354449243,17.173,4550.6,4550.5,1.6443]
[1756354449443,17.3357,4550.6,4550.5,1.6443]
[1756354449742,1.38468801,4551.1,4549.8,3.2078]
[1756354449743,20.9587,4551.2,4551.1,1.6443]
[1756354452242,21.1448,4551.2,4551.1,1.6443]
[1756354452444,20.9587,4551.2,4551.1,1.6443]
[1756354453342,22.34338801,4551.2,4551.1,1.6443]
[1756354453543,22.52948801,4551.2,4551.1,1.6443]
[1756354453743,20.9587,4551.2,4551.1,1.6443]
[1756354453942,21.1448,4551.2,4551.1,1.2383]
[1756354454146,21.1448,4551.2,4551.1,0.2872]
[1756354454338,21.1448,4551.2,4551.1,1.6443]
[1756354454539,20.9587,4551.2,4551.1,1.6443]
[1756354454841,0.2941,4551.4,4551.3,0.58556]
[1756354455147,0.752,4551.4,4551.3,2.03976]
[1756354455344,0.9147,4551.4,4551.3,2.03976]
[1756354455538,0.4883,4551.4,4551.3,2.03976]
[1756354455739,0.9147,4551.4,4551.3,2.03976]
[1756354456348,1.1008,4551.4,4551.3,0.5831]
[1756354456548,0.9147,4551.4,4551.3,1.6443]
[1756354457550,0.752,4551.4,4551.3,1.6443]
[1756354457747,0.4883,4551.4,4551.3,1.6443]
[1756354458445,4.77858801,4551.8,4551.5,1.6443]
[1756354458446,10.2754,4551.6,4551.5,1.6443]
[1756354459045,10.0117,4551.6,4551.5,1.6443]
[1756354459247,9.91,4551.6,4551.5,1.6443]
[1756354459648,10.0117,4551.6,4551.5,1.6443]
[1756354460453,10.1024,4551.6,4551.5,1.6443]
[1756354460753,10.662,4551.6,4551.5,1.6443]
[1756354462045,3.2078,4552.4,4551.5,5.86401]
[1756354462246,3.2078,4552.4,4551.4,4.59248801]
[1756354462247,0.2633,4552.8,4552.7,0.39534]
[1756354462553,0.6579,4552.8,4552.7,2.03944]
[1756354462952,0.7601,4552.8,4552.7,2.03944]
[1756354463747,1.1094,4552.8,4552.7,0.2805]
[1756354464146,1.1094,4552.8,4552.7,1.6441]
[1756354464549,0.9237,4552.8,4552.7,1.6441]
[1756354467258,0.1022,4553.0,4552.7,1.06103]
[1756354467551,0.9237,4552.9,4552.8,1.6441]
[1756354469252,0.7601,4552.9,4552.8,1.6441]
[1756354469454,0.3053,4552.9,4552.8,1.6441]
[1756354469758,0.4968,4553.0,4552.9,1.6441]
[1756354470058,0.9237,4553.0,4552.9,1.6441]
[1756354470360,1.1094,4553.0,4552.9,1.6441]
[1756354470554,1.1094,4553.0,4552.9,0.2805]
[1756354472859,1.1094,4553.0,4552.9,0.5802]
[1756354473159,0.9237,4553.0,4552.9,1.6441]
[1756354476658,1.1094,4553.0,4552.9,1.6441]
[1756354477362,1.1094,4553.0,4552.9,1.0469]
[1756354477560,1.1094,4553.0,4552.9,1.4451]
[1756354477861,1.1094,4553.0,4552.9,1.6441]
[1756354478656,0.9237,4553.0,4552.9,1.6441]
[1756354486062,1.1094,4553.0,4552.9,1.6441]
[1756354486269,4.3172,4553.0,4552.9,1.6441]
[1756354486468,4.1315,4553.0,4552.9,1.6441]
[1756354489658,4.3172,4553.0,4552.9,1.6441]
[1756354490660,4.3172,4553.0,4552.9,0.2805]
[1756354493772,4.3172,4553.0,4552.9,0.57]
[1756354493973,4.3172,4553.0,4552.3,1.0573]
[1756354493974,0.5504,4552.4,4552.3,1.0573]
[1756354494175,20.9457,4552.4,4552.3,1.6509]
[1756354497477,20.03,4552.4,4552.3,1.6509]
[1756354498575,20.1321,4552.4,4552.3,1.6509]
[1756354498775,20.3953,4552.4,4552.3,1.6509]
[1756354498977,20.5833,4552.4,4552.3,1.6509]
[1756354499381,20.9457,4552.4,4552.3,1.6509]
[1756354503282,20.7823,4552.4,4552.3,1.6509]
[1756354504573,20.9457,4552.4,4552.3,1.6509]
[1756354504783,21.1313,4552.4,4552.3,0.3041]
[1756354504974,24.0514,4552.4,4552.1,0.3041]
[1756354505279,1.1013,4552.2,4552.1,0.993]
[1756354505479,1.1013,4552.2,4552.1,1.4544]
[1756354506782,1.1013,4552.2,4552.1,1.055]
[1756354507279,0.9157,4552.2,4552.1,1.6509]
[1756354507480,1.1017,4552.2,4552.1,1.6509]
[1756354508080,0.9157,4552.2,4552.1,1.6509]
[1756354509376,1.1017,4552.2,4552.1,1.6509]
[1756354512590,2.48638801,4552.2,4552.1,0.3041]
[1756354512886,1.1036,4551.7,4551.6,0.3041]
[1756354513088,21.1286,4551.7,4551.6,0.3041]
[1756354516589,21.1286,4551.7,4551.6,1.6509]
[1756354516590,20.9426,4551.7,4551.6,1.6509]
[1756354517084,20.666,4551.7,4551.6,1.1649]
[1756354517279,21.1286,4551.7,4551.6,1.4544]
[1756354517892,21.1286,4551.7,4551.6,0.5936]
[1756354518887,21.1286,4551.7,4551.6,0.3041]
[1756354519082,20.9426,4551.7,4551.2,0.2895]
[1756354519289,0.5513,4551.4,4551.3,0.6889]
[1756354519488,21.1296,4551.4,4551.3,0.8869]
[1756354519687,21.1296,4551.4,4551.3,1.1503]
[1756354519990,21.1296,4551.4,4551.3,1.6509]
[1756354520290,20.9436,4551.4,4551.3,1.6509]
[1756354521286,21.1296,4551.4,4551.3,1.6509]
[1756354521887,0.1043,4552.0,4551.9,1.6426]
[1756354522080,3.5887,4552.5,4552.4,1.6426]
[1756354522286,3.9888,4552.5,4552.4,1.6426]
[1756354522588,0.1945,4552.0,4551.9,0.4942]
[1756354522795,10.12058801,4552.0,4551.9,0.4942]
[1756354523187,10.12058801,4552.0,4551.9,0.7568]
[1756354523387,0.6648,4552.0,4551.9,1.6426]
[1756354523588,5.8368,4552.0,4551.9,1.6426]
[1756354523786,5.172,4552.0,4551.9,1.6426]
[1756354525083,5.8368,4552.0,4551.9,1.6426]
[1756354528496,0.2647,4552.7,4551.8,3.2078]
[1756354528688,0.8519,4552.7,4552.6,0.3082]
[1756354528998,0.8519,4552.7,4552.6,0.594]
[1756354529199,20.8759,4552.7,4552.6,0.594]
[1756354529499,20.8759,4552.7,4552.6,1.4494]
[1756354529710,20.6888,4552.7,4552.6,1.6426]
[1756354530493,20.4241,4552.7,4552.6,1.3568]
[1756354530698,0.4592,4552.7,4552.6,1.6426]
[1756354530901,20.6888,4552.7,4552.6,1.6426]
[1756354531090,20.8759,4552.7,4552.6,1.6426]
[1756354532402,20.6888,4552.7,4552.6,1.6426]
[1756354532702,20.6878,4552.7,4552.6,1.6426]
[1756354533399,20.8749,4552.7,4552.6,1.6426]
[1756354533595,20.8749,4552.7,4552.6,1.0426]
[1756354534502,20.8749,4552.7,4552.6,1.6426]
[1756354534798,20.8749,4552.7,4552.6,0.594]
[1756354535003,20.8749,4552.7,4552.6,1.1868]
[1756354535403,0.6648,4552.7,4552.6,1.6426]
[1756354535604,20.6878,4552.7,4552.6,1.6426]
[1756354536002,20.8749,4552.7,4552.6,1.6426]
[1756354538605,20.6878,4552.7,4552.6,1.6426]
[1756354539104,20.6868,4552.7,4552.6,1.6426]
[1756354540206,0.6648,4552.7,4552.6,1.6426]
[1756354540397,0.8519,4553.2,4553.1,1.4494]
[1756354540593,0.8519,4553.2,4553.1,1.6426]
[1756354540594,20.6858,4553.2,4553.1,1.6426]
[1756354540898,20.6858,4553.2,4552.3,3.2078]
[1756354540899,20.8729,4553.2,4552.7,0.80214]
[1756354541097,0.8519,4552.8,4552.7,1.84474]
[1756354541306,20.6858,4552.8,4552.7,2.03794]
[1756354541705,0.6648,4552.8,4552.7,2.03794]
[1756354541906,20.8729,4552.8,4552.7,1.43794]
[1756354542301,20.8729,4552.8,4552.7,2.03794]
[1756354542302,20.6858,4552.8,4552.7,2.03794]
[1756354546907,0.0591,4553.5,4553.0,1.6426]
[1756354547208,20.3672,4553.4,4553.3,2.03788]
[1756354548608,0.1945,4553.6,4553.5,0.39527]
[1756354548810,20.2135,4553.6,4553.5,2.03787]
[1756354549009,0.1945,4553.6,4553.5,2.03787]
[1756354549214,20.5543,4553.6,4553.5,0.594]
[1756354549510,20.5543,4553.6,4553.5,1.6426]
[1756354549710,20.3672,4553.6,4553.5,1.6426]
[1756354550011,20.3662,4553.6,4553.5,1.6426]
[1756354550412,0.3482,4553.6,4553.5,1.6426]
[1756354550710,20.3662,4553.6,4553.5,1.6426]
[1756354551414,20.5525,4553.6,4553.5,1.6426]
[1756354551715,20.3662,4553.6,4553.5,1.6426]
[1756354552224,20.3652,4553.6,4553.5,1.6426]
[1756354553715,0.5345,4553.6,4553.5,1.6426]
[1756354553912,20.5515,4553.6,4553.5,1.6426]
[1756354555010,31.64,4553.7,4553.5,1.6426]
[1756354555216,3.4517,4553.8,4553.7,1.6635]
[1756354555417,23.4094,4553.8,4553.7,1.6635]
[1756354556011,3.2078,4553.8,4553.7,1.6635]
[1756354556214,0.1863,4554.5,4554.2,0.39521]
[1756354556512,0.3371,4554.3,4554.2,1.6635]
[1756354556712,0.5234,4554.3,4554.2,1.6635]
[1756354557208,0.5234,4554.3,4554.2,0.9817]
[1756354557412,0.1856,4553.9,4553.8,1.17244]
[1756354557612,0.1856,4553.9,4553.8,1.37694]
[1756354557812,0.1856,4553.9,4553.8,2.05874]
[1756354558013,0.1856,4553.9,4553.8,42.85874]
[1756354559010,0.0583,4555.1,4554.9,0.39515]
[1756354559205,0.0011,4555.6,4555.5,1.3689]
[1756354559407,3.102,4555.9,4555.5,4.2958]
[1756354559609,3.1031,4555.9,4555.8,1.6635]
[1756354560921,11.9571,4555.9,4555.8,1.6635]
[1756354561909,18.2961,4555.9,4555.8,1.6635]
[1756354562314,20.1511,4555.9,4555.8,1.6635]
[1756354563411,0.0011,4555.9,4555.8,1.6635]
[1756354563716,20.1491,4555.9,4555.8,1.2626]
[1756354564315,20.1491,4555.9,4555.8,0.2809]
[1756354565619,0.0011,4555.9,4555.8,0.5697]
[1756354565819,20.1431,4555.9,4555.8,0.5697]
[1756354568626,0.0011,4555.9,4555.8,1.6635]
[1756354568820,20.1301,4555.9,4555.8,1.6635]
[1756354570926,20.1301,4555.9,4555.8,0.2809]
[1756354571121,20.1301,4555.9,4555.5,3.2078]
[1756354571325,1.38468801,4555.8,4555.6,0.2809]
[1756354571829,4.21951,4555.7,4554.8,0.2809]
[1756354572128,1.38468801,4554.9,4554.5,3.2078]
[1756354572320,20.131,4554.8,4554.6,0.2809]
[1756354572522,20.131,4554.8,4554.5,3.2078]
[1756354572723,20.131,4554.8,4554.6,0.2809]
[1756354573226,20.131,4554.8,4554.5,0.2809]
[1756354573427,23.3388,4554.8,4554.5,0.2809]
[1756354573630,1.38468801,4554.6,4554.5,0.2809]
[1756354573832,1.38468801,4554.6,4554.0,0.4009]
[1756354574016,1.38468801,4554.6,4554.3,0.2809]
[1756354574325,1.38468801,4554.6,4554.2,0.2888]
[1756354574326,1.38468801,4554.6,4553.7,0.2809]
[1756354574527,1.60428802,4554.6,4553.8,0.9738]
[1756354574735,1.60428802,4554.6,4553.9,0.4839]
[1756354575125,1.60428802,4554.6,4553.9,0.4075]
[1756354575322,1.38468801,4554.6,4554.0,0.2809]
[1756354575522,3.2078,4554.8,4554.0,1.0938]
[1756354575728,3.2078,4554.8,4554.7,1.6635]
[1756354575927,11.2558,4554.8,4554.7,1.6635]
[1756354576424,3.2078,4555.3,4554.7,1.6635]
[1756354576620,20.136,4555.2,4555.1,0.6929]
[1756354576827,3.2078,4555.3,4555.2,0.2809]
[1756354577024,23.3548,4555.3,4555.2,0.5697]
[1756354577230,23.3548,4555.3,4555.2,0.2809]
[1756354577429,23.3548,4555.3,4554.9,0.2888]
[1756354577430,24.73948801,4555.3,4554.9,0.2888]
[1756354577631,24.73948801,4555.3,4554.6,0.2809]
[1756354578123,24.73948801,4555.3,4554.6,0.6929]
[1756354578323,24.73948801,4555.3,4554.7,0.2809]
[1756354578523,24.73948801,4555.3,4554.7,0.9738]
[1756354578830,20.147,4555.2,4554.8,0.5697]
[1756354579027,20.145,4555.1,4554.5,0.2809]
[1756354579228,1.38468801,4554.9,4554.5,0.2809]
[1756354579531,1.38468801,4554.9,4554.2,0.2809]
[1756354579835,1.38468801,4554.5,4554.0,0.2888]
[1756354580029,1.38468801,4554.5,4554.2,0.5697]
[1756354580231,9.464,4554.4,4554.3,0.5697]
[1756354580428,1.38468801,4554.5,4554.3,0.5697]
[1756354580623,1.38468801,4554.5,4554.4,0.2809]
[1756354581026,10.80668801,4554.5,4554.4,0.2809]
[1756354581222,10.80668801,4554.5,4554.1,0.2809]
[1756354581428,10.80668801,4554.5,4553.8,0.6764]
[1756354581729,10.80668801,4554.5,4553.9,0.9602]
[1756354582244,1.38468801,4554.5,4553.9,0.6764]
[1756354582436,18.363,4554.4,4554.1,0.2838]
[1756354582632,1.38468801,4554.5,4553.5,4.2817]
[1756354582633,20.141,4554.3,4553.5,4.2817]
[1756354582833,1.38468801,4553.6,4553.2,0.2838]
[1756354583031,20.146,4553.5,4553.4,0.2838]
[1756354583332,20.146,4553.5,4552.9,0.2888]
[1756354583537,1.38468801,4553.2,4552.9,0.2888]
[1756354583739,1.38468801,4553.2,4553.0,0.2838]
[1756354583939,1.38468801,4553.2,4553.1,0.2838]
[1756354584637,4.59248801,4553.2,4553.1,0.2838]
[1756354585338,20.147,4553.5,4553.1,1.6465]
[1756354585534,31.623,4554.0,4553.5,0.9701]
[1756354585740,31.623,4554.0,4553.4,0.39528]
[1756354585741,51.767,4554.0,4553.9,1.6465]
[1756354586544,51.767,4554.0,4553.9,1.249]
[1756354587041,53.15168801,4554.0,4553.2,4.5705]
[1756354587341,1.38468801,4553.5,4553.4,0.2838]
[1756354587542,1.38468801,4553.5,4553.1,0.2838]
[1756354587744,20.16,4553.4,4553.1,0.2838]
[1756354588239,20.16,4553.4,4552.7,0.9602]
[1756354588848,4.59248801,4553.1,4552.8,0.2838]
[1756354589038,4.59248801,4553.1,4552.4,0.2838]
[1756354589243,1.38468801,4552.7,4552.5,0.2838]
[1756354589442,20.16,4552.6,4551.9,3.2078]
[1756354589649,20.16,4552.6,4552.5,1.249]
[1756354589855,20.16,4552.6,4552.5,1.6465]
[1756354590057,1.38468801,4552.7,4552.6,1.249]
[1756354590244,20.164,4552.7,4552.6,1.6465]
[1756354590451,20.161,4552.7,4552.6,1.6465]
[1756354591659,20.161,4552.7,4552.6,0.2838]
[1756354592253,4.59248801,4553.1,4552.7,0.5726]
[1756354592461,10.90368801,4553.0,4552.4,1.249]
[1756354593160,10.90368801,4553.0,4552.4,0.4789]
[1756354593457,1.38468801,4552.6,4552.4,0.2888]
[1756354593655,18.559,4552.5,4552.1,0.2838]
[1756354593961,1.38468801,4552.2,4552.1,0.2838]
[1756354594863,1.38468801,4552.2,4552.1,0.7627]
[1756354595057,21.55868801,4552.2,4552.1,1.6465]
[1756354595260,21.55868801,4552.2,4551.6,0.4761]
[1756354595456,3.2078,4552.1,4551.6,0.2003]
[1756354595654,3.2078,4552.1,4551.7,0.2838]
[1756354595861,3.2078,4552.1,4551.5,0.2888]
[1756354595862,3.2078,4552.1,4551.6,0.4761]
[1756354596057,3.2078,4552.1,4551.7,0.2888]
[1756354596359,3.2078,4552.1,4551.8,0.2838]
[1756354596559,3.2078,4552.1,4551.8,0.9701]
[1756354596761,3.2078,4552.1,4552.0,1.6465]
[1756354596949,7.5708,4552.1,4552.0,1.6465]
[1756354597354,7.5708,4552.1,4552.0,0.2838]
[1756354597563,7.5708,4552.1,4551.6,0.2838]
[1756354597759,7.5708,4552.1,4551.5,0.5726]
[1756354598068,1.38468801,4551.8,4551.6,0.2838]
[1756354598557,1.38468801,4551.8,4551.0,0.2888]
[1756354598757,1.38468801,4551.8,4551.1,1.6465]
[1756354598959,1.38468801,4551.8,4551.3,0.5726]
[1756354599259,1.38468801,4551.8,4551.4,1.0739]
[1756354599462,1.38468801,4551.8,4551.5,0.2888]
[1756354599662,1.38468801,4551.8,4551.6,0.2838]
[1756354599958,1.38468801,4551.8,4550.9,0.6764]
[1756354600163,1.38468801,4551.8,4550.8,3.4966]
[1756354600164,1.38468801,4551.8,4551.2,0.9602]
[1756354600361,1.38468801,4551.8,4551.4,0.2888]
[1756354600558,1.38468801,4551.8,4551.5,0.5726]
[1756354600764,1.38468801,4551.8,4551.6,0.2838]
[1756354600962,1.38468801,4551.8,4551.2,0.2888]
[1756354601161,1.38468801,4551.8,4551.2,0.5726]
[1756354601368,1.38468801,4551.8,4551.2,0.7627]
[1756354601564,1.38468801,4551.8,4551.2,1.249]
[1756354602262,7.5708,4552.1,4551.3,0.2838]
[1756354602457,1.38468801,4551.8,4550.8,3.2078]
[1756354602662,1.38468801,4551.8,4551.4,0.2888]
[1756354602864,1.38468801,4551.8,4551.5,0.2838]
[1756354603065,4.089,4551.7,4550.8,3.2078]
[1756354603265,4.089,4551.7,4549.3,1.95988543]
[1756354603266,4.59248801,4550.9,4549.7,0.2838]
[1756354603462,4.59248801,4550.1,4549.4,0.9652]
[1756354603769,4.59248801,4550.1,4549.2,3.2078]
[1756354603770,7.28268801,4550.0,4549.8,0.2888]
[1756354603958,10.003,4549.9,4549.8,1.0739]
[1756354604564,10.003,4549.9,4549.8,1.6465]
[1756354606561,3.2078,4550.6,4550.5,1.6465]
[1756354606865,19.6718,4550.6,4550.5,1.6465]
[1756354607271,3.2078,4550.6,4550.5,1.6465]
[1756354608277,3.2078,4550.6,4550.5,1.249]
[1756354608475,3.2078,4550.6,4550.5,0.2838]
[1756354608774,3.2078,4550.6,4550.0,0.4739]
[1756354608972,3.2078,4550.6,4550.0,0.6742]
[1756354609270,3.2078,4550.6,4549.6,0.2888]
[1756354609467,7.30118147,4550.1,4549.6,0.2888]
[1756354609670,6.511,4550.0,4549.7,0.2838]
[1756354610074,6.511,4550.0,4549.3,0.2838]
[1756354610464,4.09338147,4549.4,4548.8,0.6863]
[1756354610671,3.2078,4549.0,4548.3,0.6863]
[1756354610973,16.285,4548.9,4548.8,0.963]
[1756354611274,16.285,4548.9,4548.8,1.249]
[1756354612270,16.2861,4548.9,4548.8,0.2838]
[1756354612471,16.2861,4548.9,4548.8,1.6724]
[1756354613877,0.0011,4548.9,4548.8,0.6737]
[1756354614370,0.0011,4548.9,4548.8,0.955]
[1756354614575,0.0011,4548.9,4548.8,0.4683]
[1756354614770,0.0011,4548.9,4548.8,0.2813]
[1756354615172,0.0011,4548.9,4548.8,1.6699]
[1756354615673,3.2078,4549.5,4549.4,1.6699]
[1756354616078,3.2078,4549.5,4549.4,5.6699]
[1756354616282,3.2078,4550.0,4549.9,1.6699]
[1756354616779,3.2078,4550.6,4549.9,5.6699]
[1756354616976,3.2078,4551.7,4551.1,1.3886]
[1756354617180,0.0011,4551.3,4551.2,1.6699]
[1756354617378,0.52668751,4551.3,4551.2,1.6699]
[1756354617676,0.0011,4551.3,4551.2,1.6699]
[1756354617979,0.0011,4551.3,4551.2,1.2487]
[1756354618179,0.0011,4551.3,4551.2,0.2813]
[1756354618573,0.0011,4551.3,4551.2,1.2487]
[1756354618772,0.0011,4551.3,4551.2,1.6699]
[1756354619679,0.0011,4551.3,4551.2,0.2813]
[1756354620067,0.0011,4551.3,4550.9,0.2813]
[1756354620277,0.0011,4551.0,4550.9,0.2813]
[1756354620583,15.5191,4551.0,4550.9,0.2813]
[1756354620788,23.61248147,4551.0,4550.0,0.7804]
[1756354620975,0.0011,4550.2,4550.1,0.955]
[1756354621176,0.0011,4550.2,4550.1,1.2487]
[1756354621783,20.2631,4550.2,4550.1,0.2813]
[1756354622281,23.4709,4550.2,4549.6,0.2813]
[1756354622578,23.4709,4550.2,4549.7,0.4867]
[1756354622778,23.4709,4550.2,4549.8,0.4867]
[1756354622978,23.4709,4550.2,4550.0,0.2813]
[1756354623377,23.4709,4550.2,4549.9,0.2937]
[1756354623574,23.4709,4550.2,4550.0,0.2813]
[1756354623878,23.4709,4550.2,4549.6,0.2813]
[1756354624075,0.0011,4549.7,4549.6,0.2813]
[1756354624278,0.0011,4549.7,4549.6,0.762]
[1756354624484,0.0011,4549.7,4549.6,1.2487]
[1756354625580,0.0011,4549.7,4549.6,1.6699]
[1756354626470,12.4781,4549.7,4549.6,1.2487]
[1756354626674,15.6859,4549.7,4549.6,0.2813]
[1756354628681,16.21362845,4549.7,4549.6,0.2813]
[1756354629381,16.21362845,4549.7,4549.2,0.7149]
[1756354629581,15.6859,4549.7,4549.3,0.2813]
[1756354629883,15.6859,4549.7,4549.2,0.2937]
[1756354630082,15.6859,4549.7,4549.3,0.2813]
[1756354630583,15.6859,4549.7,4549.6,0.187]
[1756354630879,3.2078,4549.7,4549.6,1.6699]
[1756354631878,3.2078,4550.2,4550.0,0.39556]
[1756354632179,3.2078,4550.2,4550.1,1.6699]
[1756354632775,3.2078,4550.7,4550.6,1.6699]
[1756354633980,9.815,4550.9,4550.6,1.6699]
[1756354634287,9.815,4550.9,4550.8,1.2487]
[1756354634486,9.815,4550.9,4550.8,1.6699]
[1756354634787,10.0138,4550.9,4550.8,1.6699]
[1756354634987,11.1593,4550.9,4550.8,1.6699]
[1756354635185,1.3443,4550.5,4550.4,1.6699]
[1756354635382,1.6427,4550.5,4550.4,1.6699]
[1756354635577,1.6427,4550.5,4550.4,1.2487]
[1756354635783,1.3443,4550.5,4550.4,1.6699]
[1756354635979,1.6427,4550.5,4550.4,1.6699]
[1756354636185,1.6427,4550.5,4550.0,0.2813]
[1756354636186,0.6748,4550.4,4550.0,0.2813]
[1756354636379,1.6427,4550.1,4550.0,0.955]
[1756354636783,1.3443,4550.1,4550.0,1.6699]
[1756354637188,1.0715,4550.1,4550.0,1.6699]
[1756354639587,0.1988,4550.1,4550.0,1.6699]
[1756354640093,1.0715,4550.1,4550.0,1.6699]
[1756354640294,1.3443,4550.1,4550.0,1.6699]
[1756354641589,1.3643,4550.6,4550.5,1.6655]
[1756354641787,0.9035,4550.1,4550.0,1.6655]
[1756354641985,1.3643,4550.1,4550.0,1.6655]
[1756354643780,0.6635,4550.1,4549.5,0.6047]
[1756354643988,1.3643,4549.6,4549.5,1.2768]
[1756354644492,1.3643,4549.6,4549.5,1.6655]
[1756354645787,20.9748,4550.1,4549.6,0.3023]
[1756354645996,20.274,4550.1,4550.0,1.6655]
[1756354646688,21.3654,4550.1,4550.0,1.6655]
[1756354647193,21.6383,4550.1,4550.0,1.6655]
[1756354648394,21.6383,4550.1,4550.0,0.3023]
[1756354648395,21.9421,4550.1,4550.0,0.3023]
[1756354648695,0.6635,4549.8,4549.7,0.9745]
[1756354648894,1.6681,4549.8,4549.7,1.2768]
[1756354649091,7.30118147,4550.7,4549.9,0.6721]
[1756354649092,20.27,4550.0,4549.9,0.6721]
[1756354649396,20.9335,4550.0,4549.9,1.6655]
[1756354649598,21.9381,4550.0,4549.9,1.6655]
[1756354649893,3.2078,4550.7,4549.9,1.6655]
[1756354650094,0.6635,4550.6,4550.5,1.6655]
[1756354650291,4.5721,4551.2,4551.1,1.6655]
[1756354650496,0.4279,4550.6,4550.3,1.3632]
[1756354650693,0.7317,4551.1,4550.3,0.6721]
[1756354650905,1.3952,4551.1,4551.0,1.3632]
[1756354651093,1.6681,4551.1,4551.0,1.6655]
[1756354651494,1.6681,4551.1,4551.0,0.9744]
[1756354651700,21.6493,4551.1,4551.0,1.6655]
[1756354652199,1.6681,4551.1,4551.0,0.3023]
[1756354652393,0.9673,4551.0,4550.9,0.5003]
[1756354652696,1.6681,4551.0,4550.9,1.2768]
[1756354652896,0.2024,4551.0,4550.9,1.6655]
[1756354653092,20.29,4551.1,4551.0,0.9934]
[1756354653302,3.2078,4551.2,4551.1,1.6655]
[1756354653604,23.4968,4551.2,4551.1,1.6655]
[1756354653799,24.5882,4551.2,4551.1,1.6655]
[1756354654099,24.8611,4551.2,4551.1,1.6655]
[1756354654498,3.2078,4551.2,4551.1,1.6655]
[1756354655196,3.4102,4551.2,4551.1,1.6655]
[1756354655597,3.2078,4551.2,4551.1,1.6655]
[1756354657104,20.279,4551.3,4551.1,0.6721]
[1756354657306,20.279,4551.3,4551.2,1.6655]
[1756354657500,3.2078,4551.7,4551.2,1.06757]
[1756354657705,13.1,4551.6,4551.5,1.6655]
[1756354658504,13.3024,4551.6,4551.5,1.6655]
[1756354658903,14.4643,4551.6,4551.5,1.6655]
[1756354662215,14.7681,4551.6,4551.5,1.6655]
[1756354662613,14.4643,4551.6,4551.5,1.6655]
[1756354663912,14.7681,4551.6,4551.2,3.8125]
[1756354664317,0.6635,4551.4,4551.3,0.6047]
[1756354664509,1.6681,4551.4,4551.3,0.6047]
[1756354664706,1.6681,4551.3,4551.2,3.2078]
[1756354664911,1.6681,4551.3,4551.2,4.4846]
[1756354665110,1.6681,4551.3,4551.2,4.8733]
[1756354665310,1.3643,4551.3,4551.2,4.8733]
[1756354666215,21.6183,4551.3,4551.2,4.8733]
[1756354667117,0.4279,4551.3,4551.2,4.8733]
[1756354667313,1.3643,4551.4,4551.3,1.6655]
[1756354667910,1.0914,4551.4,4551.3,1.6655]
[1756354669414,20.6809,4551.6,4551.4,0.9934]
[1756354669620,21.3444,4551.6,4551.5,1.6655]
[1756354670019,21.6173,4551.6,4551.5,1.6655]
[1756354671119,21.9211,4551.6,4551.5,1.2768]
[1756354671521,21.9211,4551.6,4551.5,1.6896]
[1756354671724,21.6173,4551.6,4551.5,1.6896]
[1756354672923,21.9211,4551.6,4551.5,1.2768]
[1756354673220,21.9211,4551.6,4551.5,0.5003]
[1756354674015,21.9211,4551.6,4551.5,0.3023]
[1756354674215,21.9211,4551.6,4551.5,1.6831]
[1756354674922,21.9211,4551.6,4551.5,1.2703]
[1756354675122,21.9211,4551.6,4551.5,0.4914]
[1756354675528,20.9165,4551.6,4551.3,0.3056]
[1756354675718,1.1432,4551.4,4551.3,0.8008]
[1756354675924,3.2078,4552.2,4551.3,1.2736]
[1756354676123,1.3372,4551.6,4551.5,1.3803]
[1756354676324,21.5572,4551.6,4551.5,1.3803]
[1756354676531,21.5572,4551.6,4551.5,1.6864]
[1756354677228,21.861,4551.6,4551.5,1.6864]
[1756354677430,3.2078,4552.2,4551.5,2.08183]
[1756354677431,0.2727,4552.0,4551.5,2.08183]
[1756354677624,0.2727,4552.0,4551.2,3.2078]
[1756354677625,0.2727,4552.3,4552.0,1.17379]
[1756354677829,0.6943,4552.3,4552.2,0.9675]
[1756354678030,0.4216,4552.3,4552.2,0.9675]
[1756354678230,0.6156,4552.3,4552.2,1.6864]
[1756354678437,1.3372,4552.3,4552.2,1.6864]
[1756354680731,1.0645,4552.3,4552.2,1.6864]
[1756354680925,1.3372,4552.3,4552.2,1.6864]
[1756354681829,32.0746,4552.7,4552.2,2.08177]
[1756354682035,20.6316,4552.6,4552.5,1.6864]
[1756354682231,20.8256,4552.6,4552.5,1.6864]
[1756354682529,21.2745,4552.6,4552.5,1.6864]
[1756354682735,21.5472,4552.6,4552.5,1.6864]
[1756354683234,21.851,4552.6,4552.5,1.6864]
[1756354683736,21.851,4552.6,4552.5,1.2736]
[1756354683938,23.2313708,4552.6,4552.2,0.7189]
[1756354684136,0.9467,4552.4,4552.3,0.3056]
[1756354684338,1.641,4552.4,4552.3,0.3056]
[1756354684635,1.641,4552.4,4552.3,1.6864]
[1756354684829,1.3372,4552.4,4552.3,1.6864]
[1756354685229,21.0732,4552.4,4552.3,1.6864]
[1756354685428,0.2727,4553.1,4552.3,0.21966999]
[1756354685630,0.2727,4553.1,4553.0,1.6864]
[1756354685631,0.194,4553.1,4553.0,1.6864]
[1756354685940,10.313,4553.2,4553.1,2.0817]